[Event "Italian-ch Teams-B 2022"]
[Site "Montesilvano"]
[Date "2022.04.23"]
[Round "7.3"]
[White "Bettalli, Francesco"]
[Black "Santagati, Alessandro"]
[Result "1-0"]
[ECO "B13"]
[WhiteElo "2287"]
[BlackElo "2301"]
[Annotator "TA"]
[PlyCount "63"]
[EventDate "2022.04.19"]
[EventType "team-tourn"]
[EventCountry "ITA"]
[SourceTitle "playchess.com"]
[Source "ChessBase"]
[SourceQuality "1"]
[TimeControl "40/5400+30:1800+30"]

{[%evp 19,63,29,31,29,33,17,12,16,22,28,27,18,25,20,29,25,41,31,54,0,9,0,0,0,0,-22,30,45,49,43,50,32,33,32,25,28,91,0,3804,3458,29977,29978,29978,29979,29963,5259]} 1. e4 {[%emt 0:00:19]} c6 {[%emt 0:00:07]} 2. d4 {[%emt 0:00:03]} d5 {[%emt 0:00:04]} 3. exd5 {[%emt 0:00:04]} cxd5 {[%emt 0:00:10]} 4. Bd3 {[%emt 0:00:05]} Nc6 {[%emt 0:00:08]} 5. c3 {[%emt 0:00:03]} Nf6 {[%emt 0:00:07]} 6. Bf4 {[%emt 0:00:04]} Bg4 {[%emt 0:00:06]} 7. Qb3 {[%emt 0:00:20]} Qd7 {[%emt 0:00:22]} 8. Nd2 {[%emt 0:00:10]} e6 {[%emt 0:00:17]} 9. Ngf3 {[%emt 0:00:05]} Bd6 {[%emt 0:00:11]} 10. Bxd6 {[%emt 0:00:06]} Qxd6 {[%emt 0:00:05]} 11. O-O {[%emt 0:00:07] B13: Caro-Kann: Exchange Variation and Panov-Botvinnik Attack.} O-O {[%emt 0:00:13]} 12. Rae1 {[%emt 0:00:06]} Ne7 {[%emt 0:02:14]} 13. Ne5 {[%emt 0:00:06] The position is equal.} (13. Qxb7 Rfb8 14. Qa6 Qxa6 15. Bxa6 Rxb2 $17) 13... Bf5 {[%emt 0:00:13]} 14. Bxf5 {[%emt 0:00:04]} ({Don't blunder} 14. Qxb7 $2 Bxd3 15. Nxd3 Rfb8 16. Qxa8 Rxa8 $19) 14... Nxf5 {[%emt 0:00:14]} 15. g4 {[%emt 0:00:03]} Ne7 {[%emt 0:00:55]} 16. f4 {[%emt 0:00:56]} ({Don't go for} 16. Qxb7 $2 Rfb8 17. Ndc4 dxc4 $19) 16... Rab8 {[%emt 0:11:41]} 17. Qb5 {[%emt 0:02:02]} a6 {[%emt 0:05:51][%cal Ba7a6,Ba6a5][%mdl 32]} 18. Qd3 {[%emt 0:00:05]} b5 {[%emt 0:02:59]} 19. a3 {[%emt 0:02:31] Inhibits b4.} a5 {[%emt 0:01:09] [#]} 20. Re3 $146 {[%emt 0:06:04]} ({Predecessor:} 20. f5 exf5 21. gxf5 b4 22. cxb4 axb4 23. a4 Ra8 24. Re2 Rxa4 25. Rg2 Ra7 26. Qg3 {1-0 (65) Kotronias,V (2505)-Olsen,F (2354) Aarhus 2018}) 20... b4 {[%emt 0:04:39]} 21. axb4 {[%emt 0:00:04]} axb4 {[%emt 0:00:05]} 22. Rh3 {[%emt 0:00:11]} g6 {[%emt 0:02:41]} (22... bxc3 $142 23. bxc3 Ng6) 23. Qg3 $11 {[%emt 0:02:50]} bxc3 {[%emt 0:06:30]} 24. bxc3 {[%emt 0:00:25]} Kg7 $1 {[%emt 0:01:30]} 25. Qh4 {[%emt 0:17:01]} (25. f5 $5 exf5 26. gxf5 $16 (26. Qh4 Qe6 $11)) 25... Neg8 {[%emt 0:09:24] Inhibits Qh6+.} 26. f5 {[%emt 0:00:30]} exf5 {[%emt 0:01:00]} 27. gxf5 {[%emt 0:00:07][%cal Bg4f5,Bf5g6,Bg6h7][%mdl 32]} Rb2 {[%emt 0:04:18]} (27... h6 $11 {keeps the balance.}) 28. Rf2 $40 {[%emt 0:06:32][%mdl 128] Black needs to defend precisely. &Bianco is more active.} ({Better is} 28. Ndf3 $16) 28... Ra8 $2 {[%emt 0:08:38][%mdl 8192]} (28... Rc2 $11) 29. fxg6 $18 {[%emt 0:02:07][%cal Rh4h7] [#] White wants to mate with Qxh7+!} Ra1+ {[%emt 0:12:23]} 30. Kg2 {[%emt 0:00:12] White mates.} Rxd2 {[%emt 0:04:46]} 31. gxh7 {[%emt 0:00:28]} Rxf2+ {[%emt 0:01:07]} 32. Qxf2 {[%emt 0:00:03] Weighted Error Value: White=0.10 (very precise) /Black=0.33} 1-0

[Event "Italian-ch Teams-B 2022"]
[Site "Montesilvano"]
[Date "2022.04.23"]
[Round "7.3"]
[White "Simoli, Sergio"]
[Black "Lanzani, Mario"]
[Result "0-1"]
[ECO "B57"]
[WhiteElo "2262"]
[BlackElo "2266"]
[Annotator "TA"]
[PlyCount "96"]
[EventDate "2022.04.19"]
[EventType "team-tourn"]
[EventCountry "ITA"]
[SourceTitle "playchess.com"]
[Source "ChessBase"]
[SourceQuality "1"]
[TimeControl "40/5400+30:1800+30"]

{[%evp 15,96,38,43,22,24,18,23,25,27,16,17,25,28,-29,-25,-29,-4,-51,-47,-70,-54,-48,-33,-79,-81,-147,-164,-159,-117,-115,-101,-108,-97,-104,-97,-102,-91,-115,-38,-80,-71,-84,-42,-196,-181,-245,-237,-241,-251,-251,-245,-250,-228,-236,-181,-170,-179,-244,-221,-318,-283,-301,-181,-193,-193,-299,-319,-607,-622,-868,-850,-957,-915,-818,-418,-403,-378,-491,-478,-507,-504,-629,-612]} 1. e4 {[%emt 0:00:36]} c5 {[%emt 0:00:29]} 2. Nf3 {[%emt 0:00:24]} d6 {[%emt 0:00:18]} 3. d4 {[%emt 0:00:06]} cxd4 {[%emt 0:00:13]} 4. Nxd4 {[%emt 0:00:10]} Nf6 {[%emt 0:00:15]} 5. Nc3 {[%emt 0:00:12]} Nc6 {[%emt 0:00:15]} 6. Bc4 {[%emt 0:00:45]} Bd7 {[%emt 0:01:40]} 7. Be3 {[%emt 0:01:40]} Ng4 $1 {[%emt 0:04:49] The main line 7...Ng4 scores better than 7...g6.} 8. Nxc6 {[%emt 0:01:21]} bxc6 {[%emt 0:01:02]} 9. Bc1 {[%emt 0:00:17] B57: Classical Sicilian: Sozin with 6...Qb6.} g6 {[%emt 0:05:38]} 10. h3 {[%emt 0:06:11]} ({Of course not} 10. Qf3 Ne5 11. Qe2 Nxc4 12. Qxc4 Bg7 $15) 10... Nf6 {[%emt 0:02:27] [#]} 11. Qe2 $146 {[%emt 0:02:59] White has an edge.} ({Predecessor:} 11. O-O Bg7 12. Be3 O-O 13. Qd2 Qc7 14. Bh6 Rab8 15. Bxg7 Kxg7 16. b3 Rbd8 17. Rad1 Bc8 18. Rfe1 e5 19. f4 Nh5 20. fxe5 dxe5 21. Qf2 Qe7 22. Ne2 Nf6 23. Ng3 c5 {½-½ (23) Harikrishnan,A (2401)-Berdayes Ason,D (2461) Sitges 2019}) 11... Bg7 {[%emt 0:00:59]} 12. Bb3 {[%emt 0:02:43]} O-O {[%emt 0:01:12]} 13. O-O {[%emt 0:01:29]} a5 {[%emt 0:05:23]} 14. a4 {[%emt 0:04:13]} (14. Re1 $142) 14... Bc8 $11 {[%emt 0:02:25]} 15. Rd1 {[%emt 0:09:45]} Ba6 {[%emt 0:02:05]} 16. Qe1 {[%emt 0:02:19]} (16. Bc4 $11 {was preferrable.} Bxc4 17. Qxc4) 16... Nd7 $15 {[%emt 0:01:36]} 17. Be3 {[%emt 0:03:32]} Qb8 {[%emt 0:05:05]} 18. Rab1 {[%emt 0:03:48]} Qb4 {[%emt 0:10:02]} 19. f3 {[%emt 0:11:28]} (19. Bg5 $15 Rae8 20. Na2 Qxe1+ 21. Rxe1) 19... Nc5 $17 {[%emt 0:02:51]} 20. Bxc5 {[%emt 0:07:40]} (20. Ba2 $142) 20... Qxc5+ {[%emt 0:00:56]} 21. Kh1 {[%emt 0:00:44]} Bd4 {[%emt 0:05:21]} 22. Ne2 {[%emt 0:07:38]} Bf2 {[%emt 0:02:28] This bishop pair is nice.} 23. Qd2 {[%emt 0:00:10]} Be3 {[%emt 0:02:06]} 24. Qe1 {[%emt 0:00:34]} Rab8 {[%emt 0:03:25]} 25. Nc1 {[%emt 0:03:03]} Qg5 {[%emt 0:08:42]} 26. Nd3 {[%emt 0:02:23]} Bb6 {[%emt 0:06:37]} ({Better is} 26... Bxd3 $17 27. Rxd3 Bf4) 27. c4 {[%emt 0:03:05]} Bd4 $36 {[%emt 0:02:48][%mdl 2048] Black is on the roll.} 28. Ba2 {[%emt 0:01:29]} c5 {[%emt 0:04:43] Against b4. ...Bc8 is the strong threat. Black is much more active.} 29. f4 $2 {[%emt 0:06:57] [#] Loses the game.} (29. Qxa5 $15 Bc8 30. Qd2) 29... Qh6 {[%emt 0:03:27]} 30. Qg3 {[%emt 0:03:20]} (30. b4 $142) 30... Bb7 $19 {[%emt 0:04:08]} 31. Re1 {[%emt 0:01:19]} Kh8 {[%emt 0:00:32][%cal Bg8h8,Bh8g7,Bg7h6][%mdl 32]} 32. Qg5 {[%emt 0:06:43]} Qxg5 {[%emt 0:02:34]} 33. fxg5 {[%emt 0:00:13]} Kg7 {[%emt 0:01:25]} 34. Re2 {[%emt 0:02:03]} h6 {[%emt 0:02:46]} 35. gxh6+ {[%emt 0:00:55]} Kxh6 {[%emt 0:00:15]} 36. Rf1 {[%emt 0:01:10]} (36. e5 $142) 36... e5 {[%emt 0:03:05]} 37. Bb1 {[%emt 0:02:38]} (37. Rf6 {was called for.}) 37... Bc6 {[%emt 0:02:00]} 38. Rf6 {[%emt 0:01:58]} Rbd8 {[%emt 0:00:40] Hoping for ...Kg7.} 39. b3 {[%emt 0:00:20]} Kg7 {[%emt 0:00:08]} 40. Rf1 {[%emt 0:00:39]} (40. Rf3 {only move.}) 40... f5 {[%emt 0:00:23]} 41. Ne1 $2 {[%emt 0:31:30]} (41. exf5 Rxf5 42. Ree1) 41... fxe4 {[%emt 0:18:33]} 42. Rxf8 {[%emt 0:00:00]} Rxf8 {[%emt 0:00:17]} 43. Bxe4 {[%emt 0:00:00]} Bxe4 {[%emt 0:00:24]} 44. Rxe4 {[%emt 0:00:00] KRB-KRN} Rf2 {[%emt 0:00:48] [#] White must now prevent ...Rf1+.} 45. Nf3 {[%emt 0:00:00]} Rb2 {[%emt 0:00:36]} 46. Rg4 {[%emt 0:00:00]} Rxb3 {[%emt 0:02:02] Black is clearly winning.} 47. h4 {[%emt 0:00:00]} Kf6 {[%emt 0:01:35]} 48. Kh2 {[%emt 0:00:49]} Be3 {[%emt 0:03:27] Inhibits Nd2.  Weighted Error Value: White=0.50/Black=0.23 (precise)} 0-1

[Event "Italian-ch Teams-B 2022"]
[Site "Montesilvano"]
[Date "2022.04.23"]
[Round "7.3"]
[White "Lapiccirella, Daniele"]
[Black "Ortega, Lexy"]
[Result "1-0"]
[ECO "E43"]
[WhiteElo "2180"]
[BlackElo "2429"]
[Annotator "TA"]
[PlyCount "51"]
[EventDate "2022.04.19"]
[EventType "team-tourn"]
[EventCountry "ITA"]
[SourceTitle "playchess.com"]
[Source "ChessBase"]
[SourceQuality "1"]
[TimeControl "40/5400+30:1800+30"]

{[%evp 17,51,13,15,-3,31,-26,-15,-32,0,0,9,0,83,96,99,87,206,204,213,127,162,145,515,502,679,672,1727,1732,2275,1042,1624,1620,6574,3031,29992,29990]} 1. d4 {[%emt 0:00:06]} Nf6 {[%emt 0:01:30]} 2. c4 {[%emt 0:00:06]} e6 {[%emt 0:00:06]} 3. Nc3 {[%emt 0:00:03]} Bb4 {[%emt 0:00:09]} 4. Nf3 {[%emt 0:00:05]} Ne4 {[%emt 0:00:34]} 5. Qc2 {[%emt 0:05:16]} f5 {[%emt 0:00:16]} 6. e3 {[%emt 0:00:04]} b6 {[%emt 0:00:38]} 7. Bd3 {[%emt 0:00:28]} Bb7 {[%emt 0:05:00]} 8. O-O {[%emt 0:00:35]} Bxc3 {[%emt 0:14:38] 8...Nxc3 is more fashionable.} 9. bxc3 {[%emt 0:01:36]} O-O {[%emt 0:00:58][%cal Bh8f8,Bf8f6,Bf6h6][%mdl 32]} 10. c5 {[%emt 0:32:20] E43: Nimzo-Indian: Rubinstein: 4...b6.} Rf6 {[%emt 0:14:10][%cal Oe4c5] was the old line (10...bxc5).} 11. cxb6 {[%emt 0:00:53]} (11. Ne1 $14) 11... axb6 $11 {[%emt 0:05:08][%cal Oe4c3]} 12. Ne1 {[%emt 0:07:25] The position is equal.} Rh6 {[%emt 0:06:40] [#] Hoping for ...Qh4.} 13. g3 $146 {[%emt 0:08:02] Against Qh4} ({Predecessor:} 13. f3 Qh4 14. h3 Ng5 15. e4 f4 16. Rf2 Nc6 17. Bf1 Qg3 18. Kh1 Rg6 {0-1 (18) Ylisela,J-Pyhala,A (2385) Helsinki 1987}) 13... Ng5 {[%emt 0:35:18][%cal Rg5h3]} 14. f3 $1 {[%emt 0:00:30]} c5 {[%emt 0:03:19] [#]} (14... d5 $11) 15. Rb1 $1 $16 {[%emt 0:09:01]} Rg6 {[%emt 0:03:37]} 16. Qb3 {[%emt 0:16:50]} Bc6 {[%emt 0:05:10]} (16... Ba6 $16) 17. Qxb6 $18 {[%emt 0:02:08]} Qe8 {[%emt 0:00:01]} 18. Qc7 {[%emt 0:02:46]} ({Resist} 18. dxc5 Bd5) (18. Qxc5 $18 {[%cal Oa2a4]} Na6 19. Qa5) 18... h5 {[%emt 0:00:53]} 19. h4 {[%emt 0:05:44]} Nh3+ {[%emt 0:00:31][%mdl 8192] Loses the game.} (19... Nf7 $16 {is more resistant.} 20. Rf2 (20. dxc5 d6 $16) 20... Ba4) 20. Kh2 {[%emt 0:00:22][%cal Bg1h2,Bh2h3,Bh3g3][%mdl 32]} Rxa2+ {[%emt 0:01:15]} 21. Kxh3 {[%emt 0:00:14]} Kh7 {[%emt 0:00:06]} 22. Rxb8 {[%emt 0:00:20]} Qe7 {[%emt 0:01:02]} 23. Qd8 {[%emt 0:00:48][%csl Gb8][%cal Rd8h8] [#]} Rxg3+ {[%emt 0:00:22]} 24. Kxg3 {[%emt 0:00:07]} Qd6+ {[%emt 0:00:26]} 25. f4 {[%emt 0:00:23] Threatening mate with Qh8+.} Qd5 {[%emt 0:00:01]} 26. Nf3 {[%emt 0:00:31] Weighted Error Value: White=0.15 (very precise) /Black=1.28} 1-0

[Event "Italian-ch Teams-B 2022"]
[Site "Montesilvano"]
[Date "2022.04.23"]
[Round "7.4"]
[White "Pasini, Nicolo"]
[Black "Budyi, Danylo"]
[Result "1/2-1/2"]
[ECO "B24"]
[WhiteElo "2252"]
[BlackElo "1817"]
[Annotator "TA"]
[PlyCount "67"]
[EventDate "2022.04.19"]
[EventType "team-tourn"]
[EventCountry "ITA"]
[SourceTitle "playchess.com"]
[Source "ChessBase"]
[SourceQuality "1"]
[TimeControl "40/5400+30:1800+30"]

{[%evp 14,67,18,10,28,1,4,14,49,50,26,10,38,15,82,58,41,-21,14,14,37,13,104,77,98,83,134,127,146,85,82,19,19,18,25,25,26,24,30,36,35,21,29,23,29,30,49,0,0,0,0,0,0,0,0,0]} 1. e4 {[%emt 1:31:00]} c5 {[%emt 0:15:03]} 2. Nc3 {[%emt 0:00:00]} e6 {[%emt 0:00:02]} 3. Nge2 {[%emt 0:00:00]} Nc6 {[%emt 0:00:13]} 4. g3 {[%emt 0:00:00]} d5 {[%emt 0:00:01]} 5. exd5 {[%emt 0:00:00]} exd5 {[%emt 0:00:04]} 6. d4 {[%emt 0:00:00]} cxd4 {[%emt 0:01:50]} 7. Nxd4 {[%emt 0:00:00]} Nf6 {[%emt 0:00:03]} 8. Bg2 {[%emt 0:00:00]} Be7 {[%emt 0:00:34] B24: Closed Sicilian: 3 g3 sidelines.} (8... Bg4 $5 {[%cal Rg4d1]} 9. f3 Bd7 $11) 9. Nde2 {[%emt 0:00:00][%cal Rc3d5]} Be6 {[%emt 0:12:44]} 10. Bg5 {[%emt 0:00:00] [#]} Qa5 $146 {[%emt 0:09:59][%cal Od5d4] Strongly threatening ...d4!} ({Predecessor:} 10... O-O 11. O-O d4 12. Bxf6 Bxf6 13. Ne4 Bc4 14. Re1 Re8 15. Nf4 Be5 16. Qg4 Rf8 {1-0 (58) Vo,H (1924)-Huynh,A (1965) Ho Chi Minh City 2014}) 11. O-O {[%emt 0:00:00]} O-O {[%emt 0:12:29]} 12. Qd3 {[%emt 0:00:00]} Rad8 {[%emt 0:15:11]} 13. Nf4 {[%emt 0:00:00]} a6 {[%emt 0:13:21]} (13... h6 $11 14. Nxe6 fxe6) 14. Nxe6 {[%emt 0:00:00]} fxe6 {[%emt 0:00:20]} 15. Bh3 {[%emt 0:00:00]} ({White should try} 15. Rae1 $14) 15... Rd6 {[%emt 0:01:03]} (15... Kh8 $5 {[%cal Re6e5]}) 16. Rae1 {[%emt 0:00:00]} e5 {[%emt 0:04:56] Inhibits Bf4.} 17. Bxf6 {[%emt 0:00:00]} Bxf6 {[%emt 0:07:17] [#]} (17... Rfxf6 $11 18. Rd1 Rh6) 18. Nxd5 $1 $16 {[%emt 0:00:00][%mdl 512]} Qxa2 {[%emt 0:02:46]} (18... Qxd5 $2 19. Qxd5+ Rxd5 20. Be6+ Kh8 21. Bxd5 $18) 19. Bg2 {[%emt 0:02:42] White is more active.} Qxb2 {[%emt 0:00:58]} (19... Rfd8 $142) 20. Rb1 {[%emt 0:02:46]} Qd4 {[%emt 0:00:02] [#]} 21. Qb3 {[%emt 0:00:46]} ({But not} 21. Rxb7 Qxd3 22. cxd3 Nd4 $16) (21. Qa3 $142 $1 {[%cal Ra3d6]} Rfd8 22. Rfd1 (22. Nxf6+ Rxf6 23. Rxb7 Rdf8 $16)) 21... Kh8 {[%emt 0:00:32]} 22. Qxb7 {[%emt 0:03:16]} (22. Qa3 $16 Rfd8 23. Nxf6 Rxf6 24. Rxb7) 22... Rxd5 $11 {[%emt 0:00:26]} 23. Qxc6 {[%emt 0:00:08]} Rc5 {[%emt 0:01:00]} 24. Qxa6 {[%emt 0:00:57]} Rxc2 {[%emt 0:00:15]} 25. Rbd1 {[%emt 0:00:32]} Rd2 {[%emt 0:00:17]} 26. Rxd2 {[%emt 0:00:23]} Qxd2 {[%emt 0:00:05]} 27. Qe6 {[%emt 0:00:29]} Qd4 {[%emt 0:01:01]} 28. Bd5 {[%emt 0:00:44]} (28. Bf3 {seems wilder.} Bd8 29. Rb1 Bc7 30. Rb7) 28... Qc5 {[%emt 0:01:06]} 29. Kg2 {[%emt 0:00:22]} g6 {[%emt 0:00:42]} 30. f4 {[%emt 0:00:34]} (30. Re1 $14) 30... exf4 {[%emt 0:00:38] The position is equal.} 31. Rxf4 {[%emt 0:00:24]} Qe7 {[%emt 0:00:26]} 32. Qc6 {[%emt 0:00:29]} Bg7 {[%emt 0:00:17]} 33. Re4 {[%emt 0:00:11] Against Qe2+} Qf6 {[%emt 0:00:12]} 34. Qxf6 {[%emt 0:01:03] Weighted Error Value: White=0.15 (very precise) /Black=0.20 (precise)} 1/2-1/2

[Event "Italian-ch Teams-B 2022"]
[Site "Montesilvano"]
[Date "2022.04.23"]
[Round "7.4"]
[White "Buonanno, Raffaele"]
[Black "Orfini, Nicolo`"]
[Result "1/2-1/2"]
[ECO "E81"]
[WhiteElo "2191"]
[BlackElo "2238"]
[Annotator "TA"]
[PlyCount "33"]
[EventDate "2022.04.19"]
[EventType "team-tourn"]
[EventCountry "ITA"]
[SourceTitle "playchess.com"]
[Source "ChessBase"]
[SourceQuality "1"]
[TimeControl "40/5400+30:1800+30"]

{[%evp 12,33,38,27,31,20,26,-33,-30,-35,0,0,0,-12,0,0,0,0,0,2,10,8,17,0]} 1. d4 {[%emt 0:00:17]} Nf6 {[%emt 0:00:33]} 2. c4 {[%emt 0:00:29]} g6 {[%emt 0:00:04]} 3. Nc3 {[%emt 0:00:11]} Bg7 {[%emt 0:00:05]} 4. e4 {[%emt 0:00:28]} d6 {[%emt 0:00:04]} 5. f3 {[%emt 0:00:25]} O-O {[%emt 0:00:06]} 6. Nge2 {[%emt 0:00:48][%cal Bg1e2,Be2f4,Bf4d3][%mdl 32]} a6 {[%emt 0:00:17]} 7. Be3 {[%emt 0:01:57]} b5 {[%emt 0:00:39] E81: King's Indian: Sämisch: 6th move deviations (including 6 Be3 c6).} 8. Nf4 {[%emt 0:10:39]} c6 {[%emt 0:08:32]} 9. c5 {[%emt 0:09:36]} (9. d5 $11) 9... dxc5 $15 {[%emt 0:09:48] Black is slightly better.} 10. dxc5 {[%emt 0:00:03] [#]} Nfd7 $146 {[%emt 0:01:42]} ({Predecessor:} 10... Qc7 11. a4 Rd8 12. Qc2 e5 13. Nd3 Bb7 14. g3 Nbd7 15. Bh3 Nf8 16. O-O Bc8 {1-0 (61) Zubarev,A (2597)-Bravo Lutz,S (2245) Schwaebisch Gmuend 2012}) 11. Be2 {[%emt 0:23:21] The position is equal.} a5 {[%emt 0:14:59]} 12. Nd3 {[%emt 0:06:25]} a4 {[%emt 0:02:28] And now ...a3 would win.} 13. a3 {[%emt 0:04:53]} Na6 {[%emt 0:05:30]} 14. O-O {[%emt 0:00:48]} Ne5 {[%emt 0:07:35]} 15. Nxe5 {[%emt 0:02:55]} Bxe5 {[%emt 0:00:33]} 16. f4 {[%emt 0:00:33]} Bg7 {[%emt 0:01:06]} 17. f5 {[%emt 0:09:14] Weighted Error Value: White=0.12 (very precise) /Black=0.06 (flawless)} 1/2-1/2

[Event "Italian-ch Teams-B 2022"]
[Site "Montesilvano"]
[Date "2022.04.23"]
[Round "7.4"]
[White "Andreoni, Giuseppe"]
[Black "Navarro, Stefano"]
[Result "0-1"]
[ECO "C41"]
[WhiteElo "2158"]
[BlackElo "2247"]
[Annotator "TA"]
[PlyCount "102"]
[EventDate "2022.04.19"]
[EventType "team-tourn"]
[EventCountry "ITA"]
[SourceTitle "playchess.com"]
[Source "ChessBase"]
[SourceQuality "1"]
[TimeControl "40/5400+30:1800+30"]

{[%evp 15,102,25,27,22,22,7,56,43,47,27,35,0,26,36,50,0,44,45,67,75,113,89,129,26,51,62,53,54,71,72,113,117,125,94,183,184,218,207,182,156,266,246,220,0,127,0,228,0,0,-118,-118,-103,-82,-110,-48,-82,-81,-79,-66,-126,-126,-258,-236,-197,0,-124,-78,-63,-56,-169,-169,-169,-169,-169,-16,-795,-576,-463,-463,-29974,-29975,-29976,-29973,-29980,-29981,-29981,-29980,-29976,-12832]} 1. e4 {[%emt 0:00:02]} e5 {[%emt 0:00:06]} 2. Nf3 {[%emt 0:00:05]} d6 {[%emt 0:00:25]} 3. d4 {[%emt 0:00:15]} exd4 {[%emt 0:00:38]} 4. Nxd4 {[%emt 0:00:08]} Nf6 {[%emt 0:00:08]} 5. Nc3 {[%emt 0:00:07]} Be7 {[%emt 0:00:08]} 6. Bc4 {[%emt 0:00:57]} O-O {[%emt 0:00:25]} 7. O-O {[%emt 0:00:28]} a6 {[%emt 0:00:34]} 8. a4 {[%emt 0:01:55]} Nc6 {[%emt 0:00:33]} 9. Re1 {[%emt 0:07:22] C41: Philidor Defence.} Nb4 {[%emt 0:01:31]} 10. h3 {[%emt 0:28:12] [#]} c6 $146 {[%emt 0:27:31]} (10... c5 $11 11. Nf3 Be6) ({Predecessor:} 10... c5 11. Nf3 Be6 12. Nd5 Nfxd5 13. exd5 Bf5 14. Re2 Bf6 15. a5 Re8 16. c3 Rxe2 17. Bxe2 {1-0 (29) Akopian,V (2700)-Sitnikov,A (2450) Moscow 2008}) 11. Bf4 {[%emt 0:11:27] White is slightly better.} Re8 {[%emt 0:08:12]} 12. Bf1 {[%emt 0:06:38]} h6 {[%emt 0:16:13]} 13. Bh2 {[%emt 0:04:13]} c5 {[%emt 0:06:14]} 14. Nde2 {[%emt 0:06:43]} d5 {[%emt 0:01:38]} 15. exd5 {[%emt 0:06:42]} (15. e5 $14) 15... Nfxd5 {[%emt 0:01:12]} (15... Bf5) 16. Nxd5 {[%emt 0:00:53]} Nxd5 {[%emt 0:00:47]} 17. Nf4 {[%emt 0:03:32]} Nf6 {[%emt 0:11:57]} 18. Qf3 $1 {[%emt 0:04:29] Threatens to win with Bc4.} Bd6 {[%emt 0:08:09]} 19. Nd5 {[%emt 0:05:41]} (19. Bg3 $1 $16) 19... Rxe1 {[%emt 0:08:07]} 20. Nxf6+ {[%emt 0:00:06]} Qxf6 {[%emt 0:00:08]} 21. Rxe1 {[%emt 0:01:31]} Bxh2+ {[%emt 0:01:54]} 22. Kxh2 {[%emt 0:00:02]} Be6 {[%emt 0:03:12]} 23. Qxb7 {[%emt 0:04:08]} Rd8 {[%emt 0:00:01]} 24. Qc7 {[%emt 0:02:19]} Rd2 {[%emt 0:00:36]} (24... c4 $16) 25. Bd3 {[%emt 0:01:43] White wants to mate with Qb8+.} g6 {[%emt 0:00:02]} 26. Qxc5 {[%emt 0:01:33]} (26. Qb8+ Kh7 $11) 26... Rxf2 {[%emt 0:00:11] White must now prevent ...Qf3.} 27. Qe5 {[%emt 0:00:51] Hoping for Qxf6.} Qh4 {[%emt 0:00:26]} (27... Qf3 $16 {was necessary.} 28. Qb8+ (28. Qg3 Qf6 $16) 28... Kg7) 28. Qg3 $1 $18 {[%emt 0:00:15]} Qf6 {[%emt 0:00:53] [#]} 29. Qe5 {[%emt 0:01:09] Prevents Bd5.} ({Weaker is} 29. Bxa6 Rxc2 30. Qb8+ Kh7 $14) ({White should try} 29. Bxg6 $1 $18 {[%mdl 512]} fxg6 30. Rxe6 $1 Rxg2+ 31. Kxg2 Qxe6 32. Qb3 Qxb3 33. cxb3) 29... Qf3 {[%emt 0:00:48]} (29... Qh4 $1 $11 30. Re3 Qxa4 31. Bxg6 Qf4+ 32. Qxf4 Rxf4) 30. Qg3 {[%emt 0:00:13]} (30. Qb8+ $1 $16 Kg7 31. Qg3) 30... Qf6 {[%emt 0:00:44] [#]} 31. Rxe6 $2 {[%emt 0:00:59]} fxe6 $11 {[%emt 0:00:25]} 32. Qxg6+ {[%emt 0:00:31]} (32. Bxg6 $11 Kf8 33. Bd3 (33. Qb8+ Kg7 $11)) 32... Qxg6 $17 {[%emt 0:00:07]} 33. Bxg6 $18 {[%emt 0:00:01][%mdl 4096] Endgame KR-KB} a5 {[%emt 0:00:45]} 34. Kg3 {[%emt 0:00:16]} Rd2 {[%emt 0:00:28]} (34... Rf6 $1 $17 {[%cal Rf6g6]} 35. Bd3 e5) 35. Bd3 {[%emt 0:00:23]} Kf7 {[%emt 0:00:11][%mdl 1024] Black has strong compensation.} 36. Kf3 {[%emt 0:00:29]} Kf6 {[%emt 0:00:14]} 37. g3 {[%emt 0:01:07]} (37. b3 $15) 37... Ke5 $17 {[%emt 0:01:37]} 38. Ke3 {[%emt 0:00:37]} (38. h4 $17 {keeps fighting.}) 38... Rg2 $1 $19 {[%emt 0:00:07]} 39. Kf3 {[%emt 0:00:15]} Rd2 {[%emt 0:00:06]} (39... Rg1 $19 {...Rb1 is the strong threat.} 40. h4 Rb1) 40. h4 {[%emt 0:01:20]} (40. Ke3 $1 $11 {was the only way to keep the balance.} Rg2 41. Kf3) 40... Kd4 {[%emt 0:01:22]} (40... Rd1 $142 41. Kg4 Kd4) 41. g4 $17 {[%emt 0:18:03]} Rh2 $1 {[%emt 0:24:18] Strongly threatening ...Rh3+.} 42. Kg3 {[%emt 0:08:10] [#] Prevents Rh3+.} (42. h5 $1 $15) 42... Rh1 $1 $19 {[%emt 0:00:04]} 43. g5 {[%emt 0:00:33]} hxg5 {[%emt 0:01:34]} 44. hxg5 {[%emt 0:00:02] [#]} e5 $2 {[%emt 0:01:10]} (44... Ke3 $1 $19 {aiming for ...Rg1+.} 45. Bc4 Rg1+ 46. Kh2 Rxg5 47. Bxe6 Rg6) 45. Kg4 $2 {[%emt 0:02:52][%mdl 8192]} (45. Kf3 $11) 45... e4 {[%emt 0:00:23][%cal Be5e4,Be4e3][%mdl 32]} 46. Bb5 {[%emt 0:00:13]} Ke5 {[%emt 0:07:16] ( -> ...Rg1+)} 47. c3 {[%emt 0:02:31]} (47. Kg3 $19 Rg1+ 48. Kf2 Rxg5 49. Ke3) 47... Rg1+ {[%emt 0:00:00] Black mates.} 48. Kh5 {[%emt 0:00:10]} Kf4 {[%emt 0:00:00]} 49. b4 {[%emt 0:00:23]} Rxg5+ {[%emt 0:00:00]} 50. Kh6 {[%emt 0:00:01]} e3 {[%emt 0:00:00]} 51. Bc4 {[%emt 0:01:26]} Re5 {[%emt 0:00:00] What a bad dream for White.  Weighted Error Value: White=0.70/Black=0.29 (precise)} (51... Rg2 $142 52. Ba6 axb4 53. cxb4 e2 54. Bxe2 Rxe2 55. Kg7 Ke5 56. b5 Ra2 57. Kf7 Rxa4 58. b6 Rg4 59. b7 Rb4 60. Kg7 Rxb7+ 61. Kg6 Ke6 62. Kg5 Rb4 63. Kg6 Rb5 64. Kg7 Rg5+ 65. Kh6 Kf6 66. Kh7 Rh5+ 67. Kg8 Rh3 68. Kf8 Rh8#) 0-1